{"text_format":"2","workbook":"xlsx","n_sheets":2,"sheets":["Партнерские материалы","Баннерная реклама"],"not_rendered":{"charts":0,"images":1,"macros":0,"external_links":0,"defined_names":0,"comments":0,"pivot_tables":0},"unopened":[],"bounds":{"document_bytes":16777216,"sheet_cells":100000,"run_cost":"one","rows_first":2000,"rows_last":500,"rows_between":2000,"halvings":0,"cell_chars":16384,"cell_head_chars":4096},"cells_cut":0,"cells_raw":0,"read":"whole","date_system":"1900"}

{"sheet":"Партнерские материалы","index":0,"n_rows":32,"n_cols":6,"rows_kept":32,"cut":false,"hidden":false,"merged":[[0,1,0,3],[0,4,0,5],[2,0,2,5],[3,0,3,5],[4,0,4,1],[27,0,27,5],[28,0,28,1],[11,0,11,5],[12,0,12,1],[18,2,18,5],[20,0,20,5],[21,0,21,1]]}
[null,"В этом файле собрана информация о стоимости и показателях рекламных инструментов на сайте Т—Ж https://journal.tinkoff.ru\n\nЦены приведены отдельно по каждому формату. Для уточнения финальной стоимости проекта и подготовки медиаплана необходимо заполнить бриф.\n\nЦены действуют с 01.11.2024 и указаны без НДС.",null,null,"Бриф по ссылке"]
[]
["Прайс-лист на размещение рекламы в Т—Ж "]
["Партнерские материалы"]
["Партнер может выбрать один или несколько форматов, при покупке пакета от 3х материалов действуют специальные условия. В стоимость входит подготовка материала, брендирование, размещение и редакционное анонсирование. "]
["Формат","Описание","Прогноз охватов","Цена, руб.","Прогнозный CPU, руб.","Сроки подготовки (со дня заключения договора), раб. дней"]
["Экспертная статья","Статья с экспертом по теме. Рекламный блок и CTA в начале и в конце статьи",15000,700000,{"$f":"D7/C7","v":46.666666666666664},"от 20"]
["Личный опыт","Опыт и история клиента. Рекламный блок и CTA в конце статьи",15000,700000,46.666666666666664,"от 20"]
["Список","Нативное описание преимуществ продукта в виде структурированных пунктов. CTA в конце материала",15000,700000,46.666666666666664,"от 20"]
["Шорт","Короткие, информативные карточки. CTA на одной из карточек",15000,700000,46.666666666666664,"от 20"]
[]
["Интерактивные спецпроекты"]
["Партнер может выбрать один или несколько форматов, при покупке пакета от 3х материалов действуют специальные условия. В стоимость входит подготовка материала, брендирование, размещение и редакционное анонсирование. "]
["Формат","Описание","Прогноз охватов","Цена, руб.","Прогнозный CPU, руб.","Сроки подготовки (со дня заключения договора), раб. дней"]
["Тест","Опрос с вариантами ответов. Рекламный блок и CTA в тесте или результатах",15000,800000,{"$f":"D15/C15","v":53.333333333333336},"от 30"]
["Калькулятор","Интерактивный формат для расчета выгоды продукта в цифрах с рекламным блоком и CTA",15000,1000000,66.666666666666671,"от 40"]
["Фичер","Интерактивный формат под цели партнера, часто с игровой механикой",15000,1000000,{"$f":"D17/C17","v":66.666666666666671},"от 40"]
["Спецпроект с T-Data","Формат, разработанный совместно с T-Data, где на основе обезличенной банковской статистики редакция готовит большое исследование с инфографикой",15000,"от 1 000 000",{"$f":"1000000/15000","v":66.666666666666671},"от 40"]
["Эксклюзивный спецпроект","Формат, разработанный специально под цели партнера или возможностью совместить в себе несколько форматов","Индивидуальное предложение по запросу от 2 000 000 руб."]
[]
["Соцсети"]
["Размещение на лояльную аудиторию в соцсетях возможно только при условии покупки партнерского материала/спецпроекта. \nВ посте упоминается рекламодатель и дается ссылка на спецпроект."]
["Соцсеть","Описание","Прогноз охватов","Цена, руб.","Прогнозный CPV, руб.","Сроки подготовки (со дня заключения договора), раб. дней"]
["Telegram","Пост в основном канале https://t.me/t_jrnl и тематическом канале со ссылкой на спецпроект и упоминанием партнера в тексте поста",25000,100000,4,"от 5"]
["ВК","Пост в сообществе https://vk.com/t_jrnl со ссылкой на спецпроект и упоминанием партнера в тексте поста",15000,50000,3.3333333333333335,"от 5"]
["Одноклассники","Пост в группе https://ok.ru/tjrnl со ссылкой на спецпроект и упоминанием партнера в тексте поста",20000,50000,2.5,"от 5"]
[]
["Рассылки "]
["Размещение на лояльную аудиторию в рассылках возможно только при условии покупки партнерского материала/спецпроекта. \nВ письме упоминается рекламодатель и дается ссылка на спецпроект."]
["Опция ","Пример рассылки ","Прогноз охватов","Цена, руб.","Прогнозный CPV, руб.","Сроки подготовки (со дня заключения договора), раб. дней"]
["Промо блок в главной email-рассылке","https://static2.tinkoffjournal.ru/subscription-list/latest/main.html",20000,100000,5,"от 7"]
["Промо блок в тематической email-рассылке  ","https://journal.tinkoff.ru/one-page-to-rule-them-all/",5000,30000,6,"от 7"]

{"sheet":"Баннерная реклама","index":1,"n_rows":16,"n_cols":11,"rows_kept":16,"cut":false,"hidden":false,"merged":[[6,10,15,10],[8,0,9,0],[8,1,9,1],[8,6,9,6],[14,6,15,6],[6,0,7,0],[6,1,7,1],[6,6,7,6],[0,1,0,3],[0,4,0,5],[2,0,2,10],[3,0,3,10],[4,0,4,2],[12,9,15,9],[14,0,15,0],[14,1,15,1],[10,0,11,0],[10,1,11,1],[10,6,11,6],[12,0,13,0],[12,1,13,1],[12,6,13,6],[6,8,15,8],[6,9,11,9]]}
[null,"В этом файле собрана информация о стоимости и показателях рекламных инструментов на сайте Т—Ж https://journal.tinkoff.ru\n\nЦены приведены отдельно по каждому формату. Для уточнения финальной стоимости проекта и подготовки медиаплана необходимо заполнить бриф.\n\nЦены действуют с 01.11.2024 и указаны без НДС.",null,null,"Бриф по ссылке"]
[]
["Прайс-лист на размещение рекламы в Т—Ж "]
["Баннерная реклама"]
["В блоке перечислен минимальный охват по каждому инструменту, при желании объем показов может быть увеличен под цели заказчика."]
["Формат","Описание","Размер","Устройство","Прогноз охватов","Прогноз показов","Прогнозный CTR","Прогноз кликов","Единица закупки","CPM, руб.","Сроки подготовки (со дня заключения договора), раб. дней"]
["Баннер в шапке","Баннер сверху на странице, может быть показан, как на все материалы, так и на отдельные тематики","760px x 105px","Desktop",100000,{"$f":"E7*1.2","v":120000},5.0000000000000001E-3,{"$f":"F7*G7","v":600},"1000 показов",300,"от 14"]
[null,null,"100% x 120px","Mobile",400000,480000,null,{"$f":"F8*G7","v":2400}]
["Инрид баннер","Баннер расположен в 1/3 статьи","760px x 235px","Desktop",100000,120000,5.0000000000000001E-3,{"$f":"F9*G9","v":600}]
[null,null,"100% х 450px","Mobile",400000,480000,null,{"$f":"F10*G9","v":2400}]
["Баннер в футере","Баннер расположен в конце статьи","760px x 235px","Desktop",100000,120000,5.0000000000000001E-3,{"$f":"F11*G11","v":600}]
[null,null,"100% х 450px","Mobile",400000,480000,null,{"$f":"F12*G11","v":2400}]
["Поп-ап маленький (поплавок)","Баннер появляется в соответсвии с настройками, может быть показан в зависимости от времени на статье, гео, интересов читателей. Не перекрывает экран","195px x 330px","Desktop",100000,120000,0.01,{"$f":"F13*G13","v":1200},null,500]
[null,null,"350px x 165px","Mobile",400000,480000,null,{"$f":"F14*G13","v":4800}]
["Поп-ап большой (статичный) ","Баннер появляется в соответствии с настройками, может быть показан в зависимости от времени на статье, гео, интересов читателей. Перекрывает экран","680px x 340px","Desktop",100000,120000,0.01,{"$f":"F15*G15","v":1200}]
[null,null,"680px x 340px","Mobile",400000,480000,null,{"$f":"F16*G15","v":4800}]